fUST/lending_fUST_20250505
["ID","MTS","AMOUNT","RATE_DAILY","PERIOD"]
[359908568,1746412242706,-400.0,0.0003726,14]
[359908570,1746412242717,-400.0,0.0003726,14]
[359908572,1746412242727,-339.73088387,0.0003726,14]
[359908574,1746412242737,-400.0,0.0003726,14]
[359908576,1746412242747,-400.0,0.0003726,14]
[359908579,1746412242757,-400.0,0.0003726,14]
[359908581,1746412242767,-963.15,0.0003726,14]
[359908583,1746412242777,-400.0,0.0003726,14]
[359908585,1746412242787,-400.0,0.0003726,14]
[359908587,1746412242797,-400.0,0.0003726,14]
[359908589,1746412242810,-721.79,0.0003726,14]
[359908591,1746412242819,-480.97,0.0003726,14]
[359908593,1746412242829,-400.0,0.0003726,14]
[359908595,1746412242841,-400.0,0.0003726,14]
[359908597,1746412242851,-400.0,0.0003726,14]
[359908599,1746412242861,-577.99,0.0003726,14]
[359908601,1746412242871,-400.0,0.0003726,14]
[359908603,1746412242881,-407.05378059,0.0003726,14]
[359908605,1746412242891,-586.02,0.0003726,14]
[359908608,1746412242902,-400.0,0.0003726,14]
[359908609,1746412242912,-400.0,0.0003726,14]
[359908611,1746412242922,-433.78,0.0003726,14]
[359908614,1746412242932,-400.0,0.0003726,14]
[359908616,1746412242943,-400.0,0.0003726,14]
[359908618,1746412242952,-2557.04,0.0003726,14]
[359908620,1746412242962,-400.0,0.0003726,14]
[359908622,1746412242972,-400.0,0.0003726,14]
[359908624,1746412242981,-740.33,0.0003726,14]
[359908626,1746412242991,-400.0,0.0003726,14]
[359908628,1746412243000,-400.0,0.0003726,14]
[359908630,1746412243010,-433.01,0.0003726,14]
[359908632,1746412243019,-400.0,0.0003726,14]
[359908635,1746412243030,-409.03901445,0.0003726,14]
[359908637,1746412243039,-400.0,0.0003726,14]
[359908639,1746412243049,-400.0,0.0003726,14]
[359908641,1746412243059,-400.0,0.0003726,14]
[359908643,1746412243069,-400.0,0.0003726,14]
[359908645,1746412243079,-484.59,0.0003726,14]
[359908648,1746412243090,-400.0,0.0003726,14]
[359908650,1746412243100,-1148.37,0.0003726,14]
[359908652,1746412243110,-525.65,0.0003726,14]
[359908655,1746412243120,-400.0,0.0003726,14]
[359908657,1746412243129,-412.33,0.0003726,14]
[359908659,1746412243139,-400.0,0.0003726,14]
[359908661,1746412243149,-797.75,0.0003726,14]
[359908663,1746412243159,-400.0,0.0003726,14]
[359908665,1746412243169,-1447.64,0.0003726,14]
[359908667,1746412243178,-400.0,0.0003726,14]
[359908669,1746412243188,-1387.86,0.0003726,14]
[359908671,1746412243198,-406.91010356,0.0003726,14]
[359908673,1746412243209,-400.0,0.0003726,14]
[359908675,1746412243220,-9093.68,0.0003726,14]
[359908677,1746412243230,-642.67,0.0003726,14]
[359908679,1746412243239,-254.17945117,0.0003726,14]
[359908681,1746412243249,-400.0,0.0003726,14]
[359908683,1746412243259,-400.0,0.0003726,14]
[359908685,1746412243269,-607.04,0.0003726,14]
[359908687,1746412243279,-675.24,0.0003726,14]
[359908689,1746412243288,-2612.94,0.0003726,14]
[359908691,1746412243299,-2671.88,0.0003726,14]
[359908693,1746412243309,-400.0,0.0003726,14]
[359908695,1746412243318,-1200.19,0.0003726,14]
[359908697,1746412243328,-400.0,0.0003726,14]
[359908699,1746412243338,-400.0,0.0003726,14]
[359908700,1746412243348,-1032.49,0.0003726,14]
[359908701,1746412243358,-400.0,0.0003726,14]
[359908702,1746412243368,-400.0,0.0003726,14]
[359908703,1746412243378,-400.0,0.0003726,14]
[359908704,1746412243388,-400.0,0.0003726,14]
[359908705,1746412243397,-400.0,0.0003726,2]
[359908706,1746412243407,-500.0,0.0003726,60]
[359908707,1746412243417,-205.05010483,0.00037329,36]
[359908708,1746412243426,-13620.56,0.000374,30]
[359908709,1746412243435,-3147.628,0.000375,30]
[359908710,1746412243445,-917.46081155,0.00037516,2]
[359908711,1746412243455,-600.0,0.00037516,5]
[359908712,1746412243464,-5196.67456001,0.00037524,3]
[359908713,1746412243474,-400.0,0.00037534,14]
[359908714,1746412243484,-400.0,0.00037534,14]
[359908715,1746412243493,-400.0,0.00037534,14]
[359908716,1746412243502,-400.0,0.00037534,14]
[359908717,1746412243512,-400.0,0.00037534,14]
[359908718,1746412243521,-400.0,0.00037534,14]
[359908719,1746412243530,-244.84843394,0.00037534,14]
[359908721,1746412243540,-400.0,0.00037534,14]
[359908723,1746412243550,-400.0,0.00037534,14]
[359908724,1746412243560,-400.0,0.00037534,14]
[359908725,1746412243570,-234.46809439,0.00037534,14]
[359908726,1746412243580,-400.0,0.00037534,14]
[359908727,1746412243591,-400.0,0.00037534,14]
[359908729,1746412243602,-685.43279134,0.00037534,14]
[359908732,1746412243711,-277.71720866,0.00037534,14]
[359908734,1746412243721,-400.0,0.00037534,14]
[359908735,1746412243732,-721.79,0.00037534,14]
[359908736,1746412243743,-480.97,0.00037534,14]
[359908737,1746412243753,-250.49937556,0.00037534,14]
[359908738,1746412243764,-400.0,0.00037534,14]
[359908739,1746412243774,-400.0,0.00037534,14]
[359908740,1746412243784,-577.99,0.00037534,14]
[359908741,1746412243795,-459.44088874,0.00037534,14]
[359908742,1746412243805,-586.02,0.00037534,14]
[359908743,1746412243815,-400.0,0.00037534,14]
[359908744,1746412243825,-400.0,0.00037534,14]
[359908745,1746412243834,-433.78,0.00037534,14]
[359908746,1746412243848,-2557.04,0.00037534,14]
[359908747,1746412243858,-233.31,0.00037534,14]
[359908748,1746412243868,-740.33,0.00037534,14]
[359908749,1746412243878,-400.0,0.00037534,14]
[359908750,1746412243888,-400.0,0.00037534,14]
[359908751,1746412243898,-433.01,0.00037534,14]
[359908752,1746412243908,-400.0,0.00037534,14]
[359908753,1746412243918,-400.0,0.00037534,14]
[359908754,1746412243928,-400.0,0.00037534,14]
[359908755,1746412243938,-400.0,0.00037534,14]
[359908756,1746412243949,-412.20575067,0.00037534,14]
[359908757,1746412243958,-484.59,0.00037534,14]
[359908758,1746412243968,-400.0,0.00037534,14]
[359908759,1746412243978,-1148.37,0.00037534,14]
[359908760,1746412243989,-525.65,0.00037534,14]
[359908761,1746412243999,-400.0,0.00037534,14]
[359908762,1746412244010,-412.33,0.00037534,14]
[359908763,1746412244020,-400.0,0.00037534,14]
[359908764,1746412244031,-400.0,0.00037534,14]
[359908765,1746412244040,-797.75,0.00037534,14]
[359908766,1746412244051,-1447.64,0.00037534,14]
[359908767,1746412244062,-408.32,0.00037534,14]
[359908768,1746412244071,-1387.86,0.00037534,14]
[359908769,1746412244081,-410.16230876,0.00037534,14]
[359908770,1746412244097,-9093.68,0.00037534,14]
[359908771,1746412244107,-642.67,0.00037534,14]
[359908772,1746412244118,-400.0,0.00037534,14]
[359908773,1746412244128,-400.0,0.00037534,14]
[359908774,1746412244138,-607.04,0.00037534,14]
[359908775,1746412244148,-502.85632463,0.00037534,14]
[359908776,1746412244462,-400.0,0.00035616,14]
[359908777,1746412244472,-500.0,0.0003641,14]
[359908778,1746412244483,-500.0,0.00036438,14]
[359908779,1746412244494,-500.0,0.00036465,14]
[359908780,1746412244504,-212.97734422,0.00036493,14]
[359908781,1746412244515,-400.0,0.0003726,14]
[359908782,1746412244526,-172.38367537,0.00037534,14]
[359908783,1746412244641,-2612.94,0.00037534,14]
[359908784,1746412244652,-2671.88,0.00037534,14]
[359908785,1746412244662,-1200.19,0.00037534,14]
[359908786,1746412244672,-400.0,0.00037534,14]
[359908787,1746412244682,-400.0,0.00037534,14]
[359908788,1746412244692,-1032.49,0.00037534,14]
[359908789,1746412244702,-400.0,0.00037534,14]
[359908790,1746412244712,-400.0,0.00037534,14]
[359908791,1746412244721,-400.0,0.00037534,14]
[359908792,1746412244731,-400.0,0.00037534,14]
[359908793,1746412244741,-400.0,0.00037534,2]
[359908794,1746412244751,-400.0,0.00037534,14]
[359908795,1746412244761,-205.05010483,0.00037567,37]
[359908796,1746412244770,-1901.38,0.000377,7]
[359908797,1746412244779,-182.23035355,0.000377,7]
[359908798,1746412244789,-5196.67456001,0.00037798,3]
[359908799,1746412244799,-205.05010483,0.00037805,37]
[359908800,1746412244809,-400.0,0.00037808,14]
[359908801,1746412244819,-400.0,0.00037808,14]
[359908802,1746412244829,-417.96873159,0.00037808,14]
[359908803,1746412244839,-406.59919635,0.00037808,14]
[359908804,1746412244848,-457.96834738,0.00037808,14]
[359908805,1746412244858,-400.0,0.00037808,14]
[359908806,1746412244868,-352.27,0.00037808,14]
[359908807,1746412244878,-400.0,0.00037808,14]
[359908808,1746412244887,-400.0,0.00037808,14]
[359908809,1746412244896,-400.0,0.00037808,14]
[359908810,1746412244905,-400.0,0.00037808,14]
[359908811,1746412244915,-963.15,0.00037808,14]
[359908812,1746412244924,-400.0,0.00037808,14]
[359908813,1746412244934,-721.79,0.00037808,14]
[359908814,1746412244944,-480.97,0.00037808,14]
[359908815,1746412244953,-586.02,0.00037808,14]
[359908816,1746412244962,-400.0,0.00037808,14]
[359908817,1746412244972,-400.0,0.00037808,14]
[359908818,1746412244983,-433.78,0.00037808,14]
[359908819,1746412244993,-2557.04,0.00037808,14]
[359908820,1746412245003,-740.33,0.00037808,14]
[359908821,1746412245014,-400.0,0.00037808,14]
[359908822,1746412245024,-400.0,0.00037808,14]
[359908823,1746412245034,-433.01,0.00037808,14]
[359908824,1746412245047,-400.0,0.00037808,14]
[359908825,1746412245057,-400.0,0.00037808,14]
[359908826,1746412245068,-400.0,0.00037808,14]
[359908827,1746412245078,-484.59,0.00037808,14]
[359908828,1746412245089,-1148.37,0.00037808,14]
[359908829,1746412245098,-525.65,0.00037808,14]
[359908830,1746412245108,-400.0,0.00037808,14]
[359908831,1746412245118,-412.33,0.00037808,14]
[359908832,1746412245127,-400.0,0.00037808,14]
[359908833,1746412245137,-797.75,0.00037808,14]
[359908834,1746412245147,-1447.64,0.00037808,14]
[359908835,1746412245156,-1387.86,0.00037808,14]
[359908836,1746412245166,-9093.68,0.00037808,14]
[359908837,1746412245176,-642.67,0.00037808,14]
[359908838,1746412245186,-400.0,0.00037808,14]
[359908839,1746412245195,-400.0,0.00037808,14]
[359908840,1746412245207,-607.04,0.00037808,14]
[359908841,1746412245217,-675.24,0.00037808,14]
[359908842,1746412245227,-2612.94,0.00037808,14]
[359908843,1746412245237,-2671.88,0.00037808,14]
[359908844,1746412245246,-1200.19,0.00037808,14]
[359908845,1746412245257,-400.0,0.00037808,14]
[359908846,1746412245267,-193.64182849,0.00037808,14]
[359908847,1746412245277,-1032.49,0.00037808,14]
[359908848,1746412245287,-400.0,0.00037808,14]
[359908849,1746412245296,-400.0,0.00037808,14]
[359908850,1746412245306,-400.0,0.00037808,14]
[359908851,1746412245316,-400.0,0.00037808,14]
[359908852,1746412245325,-400.0,0.00037808,2]
[359908853,1746412245335,-400.0,0.00037808,14]
[359908854,1746412245346,-400.0,0.00038,14]
[359908855,1746412245355,-1075.0450872,0.00038,4]
[359908856,1746412245365,-671.88790916,0.00038,30]
[359908857,1746412245374,-205.05010483,0.00038043,37]
[359908858,1746412245383,-5196.67456001,0.00038054,3]
[359908859,1746412245392,-1500.0,0.00038064,2]
[359908860,1746412245401,-5196.67456001,0.00038072,3]
[359908861,1746412245410,-400.0,0.00038082,14]
[359908862,1746412245419,-400.0,0.00038082,14]
[359908863,1746412245428,-400.0,0.00038082,14]
[359908864,1746412245437,-400.0,0.00038082,14]
[359908865,1746412245447,-400.0,0.00038082,14]
[359908866,1746412245456,-963.15,0.00038082,14]
[359908867,1746412245466,-400.0,0.00038082,14]
[359908868,1746412245475,-721.79,0.00038082,14]
[359908869,1746412245484,-480.97,0.00038082,14]
[359908870,1746412245493,-586.02,0.00038082,14]
[359908871,1746412245502,-324.92442627,0.00038082,14]
[359908872,1746412245511,-400.0,0.00038082,14]
[359908874,1746412245520,-433.78,0.00038082,14]
[359908876,1746412245530,-2557.04,0.00038082,14]
[359908877,1746412245539,-740.33,0.00038082,14]
[359908879,1746412245548,-400.0,0.00038082,14]
[359908880,1746412245558,-400.0,0.00038082,14]
[359908881,1746412245568,-433.01,0.00038082,14]
[359908882,1746412245577,-400.0,0.00038082,14]
[359908883,1746412245586,-400.0,0.00038082,14]
[359908884,1746412245596,-484.59,0.00038082,14]
[359908885,1746412245606,-1148.37,0.00038082,14]
[359908886,1746412245615,-525.65,0.00038082,14]
[359908887,1746412245625,-400.0,0.00038082,14]
[359908888,1746412245635,-412.33,0.00038082,14]
[359908889,1746412245645,-400.0,0.00038082,14]
[359908891,1746412245655,-797.75,0.00038082,14]
[359908893,1746412245665,-1447.64,0.00038082,14]
[359908895,1746412245676,-1387.86,0.00038082,14]
[359908897,1746412245686,-9093.68,0.00038082,14]
[359908898,1746412245697,-642.67,0.00038082,14]
[359908899,1746412245706,-400.0,0.00038082,14]
[359908900,1746412245716,-400.0,0.00038082,14]
[359908901,1746412245726,-607.04,0.00038082,14]
[359908902,1746412245736,-675.24,0.00038082,14]
[359908903,1746412245748,-2612.94,0.00038082,14]
[359908904,1746412245758,-2671.88,0.00038082,14]
[359908905,1746412245767,-1200.19,0.00038082,14]
[359908906,1746412245777,-400.0,0.00038082,14]
[359908907,1746412245788,-1032.49,0.00038082,14]
[359908908,1746412245799,-400.0,0.00038082,14]
[359908910,1746412245810,-400.0,0.00038082,14]
[359908911,1746412245819,-347.28,0.00038082,14]
[359908913,1746412245829,-400.0,0.00038082,14]
[359908915,1746412245840,-530.08,0.00038082,2]
[359908916,1746412245851,-400.0,0.00038082,14]
[359908918,1746412245862,-917.46081155,0.00038215,2]
[359908919,1746412245871,-205.05010483,0.00038281,38]
[359908920,1746412245882,-5196.67456001,0.00038346,3]
[359908922,1746412245893,-400.0,0.00038356,14]
[359908923,1746412245902,-400.0,0.00038356,14]
[359908925,1746412245912,-400.0,0.00038356,14]
[359908926,1746412245922,-400.0,0.00038356,14]
[359908927,1746412245931,-400.0,0.00038356,14]
[359908928,1746412245942,-963.15,0.00038356,14]
[359908929,1746412245952,-458.56,0.00038356,14]
[359908930,1746412245965,-721.79,0.00038356,14]
[359908931,1746412245975,-480.97,0.00038356,14]
[359908932,1746412245985,-586.02,0.00038356,14]
[359908933,1746412245995,-395.89312018,0.00038356,14]
[359908934,1746412246004,-433.78,0.00038356,14]
[359908935,1746412246014,-2557.04,0.00038356,14]
[359908936,1746412246023,-740.33,0.00038356,14]
[359908938,1746412246033,-400.0,0.00038356,14]
[359908941,1746412246044,-400.0,0.00038356,14]
[359908943,1746412246053,-433.01,0.00038356,14]
[359908945,1746412246063,-400.0,0.00038356,14]
[359908947,1746412246073,-363.76406202,0.00038356,14]
[359908949,1746412246082,-484.59,0.00038356,14]
[359908951,1746412246095,-1148.37,0.00038356,14]
[359908953,1746412246104,-525.65,0.00038356,14]
[359908954,1746412246114,-400.0,0.00038356,14]
[359908955,1746412246123,-412.33,0.00038356,14]
[359908956,1746412246133,-400.0,0.00038356,14]
[359908957,1746412246143,-797.75,0.00038356,14]
[359908958,1746412246152,-1447.64,0.00038356,14]
[359908959,1746412246161,-1387.86,0.00038356,14]
[359908960,1746412246171,-9093.68,0.00038356,14]
[359908961,1746412246180,-642.67,0.00038356,14]
[359908962,1746412246190,-400.0,0.00038356,14]
[359908963,1746412246200,-400.0,0.00038356,14]
[359908964,1746412246211,-1052.02405831,0.00038356,120]
[359908965,1746412246222,-607.04,0.00038356,14]
[359908966,1746412246231,-675.24,0.00038356,14]
[359908967,1746412246240,-2612.94,0.00038356,14]
[359908968,1746412246250,-2671.88,0.00038356,14]
[359908969,1746412246260,-1200.19,0.00038356,14]
[359908970,1746412246270,-400.0,0.00038356,14]
[359908971,1746412246280,-400.0,0.00038356,14]
[359908972,1746412246291,-400.0,0.00038356,14]
[359908973,1746412246301,-400.0,0.00038356,14]
[359908974,1746412246311,-400.0,0.00038356,14]
[359908975,1746412246321,-400.0,0.00038356,14]
[359908976,1746412246331,-400.0,0.00038356,14]
[359908977,1746412246343,-400.0,0.00038356,14]
[359908978,1746412246353,-400.0,0.00038356,14]
[359908979,1746412246363,-400.0,0.00038356,14]
[359908981,1746412246373,-400.0,0.00038356,14]
[359908983,1746412246383,-400.0,0.00038356,14]
[359908984,1746412246392,-1032.49,0.00038356,14]
[359908985,1746412246401,-448.46,0.00038356,14]
[359908986,1746412246410,-400.0,0.00038356,14]
[359908987,1746412246420,-400.0,0.00038356,14]
[359908988,1746412246430,-400.0,0.00038356,14]
[359908989,1746412246440,-500.0,0.00038356,60]
[359908990,1746412246450,-200.0,0.00038356,5]
[359908991,1746412246460,-151.0,0.00038378,14]
[359908992,1746412246470,-151.0,0.00038378,14]
[359908993,1746412246479,-500.0,0.00038378,5]
[359908994,1746412246489,-1503.7,0.000384,30]
[359908995,1746412246499,-5000.0,0.000385,45]
[359908996,1746412246509,-328.21657044,0.000385,2]
[359908997,1746412246520,-205.05010483,0.00038519,38]
[359908998,1746412246529,-283.5,0.00038588,30]
[359908999,1746412246539,-3020.27,0.000386,30]
[359909000,1746412246549,-151.0,0.000386,14]
[359909001,1746412246559,-151.0,0.000386,14]
[359909002,1746412246569,-160.556023,0.000386,14]
[359909003,1746412246579,-151.0,0.000386,14]
[359909004,1746412246589,-151.0,0.000386,14]
[359909005,1746412246600,-151.0,0.000386,14]
[359909006,1746412246610,-311.494239,0.000386,14]
[359909007,1746412246620,-311.494239,0.000386,14]
[359909008,1746412246630,-151.0,0.000386,14]
[359909009,1746412246640,-166.015787,0.000386,14]
[359909010,1746412246650,-200.0,0.0003861,120]
[359909011,1746412246660,-151.0,0.0003862,14]
[359909012,1746412246669,-151.0,0.0003862,14]
[359909013,1746412246679,-265.235525,0.0003862,14]
[359909014,1746412246688,-151.0,0.0003862,14]
[359909015,1746412246699,-155.612625,0.0003862,14]
[359909016,1746412246709,-151.0,0.0003862,14]
[359909017,1746412246718,-151.0,0.0003862,14]
[359909018,1746412246730,-151.0,0.0003862,14]
[359909019,1746412246740,-151.0,0.0003862,14]
[359909020,1746412246750,-151.0,0.0003862,14]
[359909021,1746412246760,-151.0,0.0003862,14]
[359909022,1746412246771,-151.0,0.0003862,14]
[359909023,1746412246781,-228.226489,0.0003862,14]
[359909024,1746412246790,-228.226489,0.0003862,14]
[359909025,1746412246801,-5196.67456001,0.0003862,3]
[359909026,1746412246811,-400.0,0.0003863,14]
[359909027,1746412246820,-400.0,0.0003863,14]
[359909028,1746412246830,-400.0,0.0003863,14]
[359909029,1746412246840,-400.0,0.0003863,14]
[359909030,1746412246850,-400.0,0.0003863,14]
[359909031,1746412246859,-1644.930737,0.0003863,2]
[359909032,1746412246869,-963.15,0.0003863,14]
[359909033,1746412246879,-721.79,0.0003863,14]
[359909034,1746412246898,-480.97,0.0003863,14]
[359909035,1746412246910,-586.02,0.0003863,14]
[359909036,1746412246919,-433.78,0.0003863,14]
[359909037,1746412246930,-2557.04,0.0003863,14]
[359909038,1746412246939,-740.33,0.0003863,14]
[359909039,1746412246950,-400.0,0.0003863,14]
[359909040,1746412246959,-400.0,0.0003863,14]
[359909041,1746412246969,-433.01,0.0003863,14]
[359909042,1746412246980,-400.0,0.0003863,14]
[359909043,1746412246990,-484.59,0.0003863,14]
[359909044,1746412246999,-1148.37,0.0003863,14]
[359909045,1746412247009,-525.65,0.0003863,14]
[359909046,1746412247020,-400.0,0.0003863,14]
[359909047,1746412247030,-412.33,0.0003863,14]
[359909048,1746412247040,-400.0,0.0003863,14]
[359909049,1746412247050,-797.75,0.0003863,14]
[359909050,1746412247060,-1447.64,0.0003863,14]
[359909051,1746412247071,-1387.86,0.0003863,14]
[359909052,1746412247081,-9093.68,0.0003863,14]
[359909053,1746412247091,-642.67,0.0003863,14]
[359909054,1746412247101,-400.0,0.0003863,14]
[359909055,1746412247112,-400.0,0.0003863,14]
[359909056,1746412247121,-607.04,0.0003863,14]
[359909057,1746412247131,-675.24,0.0003863,14]
[359909058,1746412247141,-2612.94,0.0003863,14]
[359909059,1746412247150,-2671.88,0.0003863,14]
[359909060,1746412247161,-1200.19,0.0003863,14]
[359909061,1746412247172,-400.0,0.0003863,14]
[359909062,1746412247184,-400.0,0.0003863,14]
[359909063,1746412247193,-1032.49,0.0003863,14]
[359909064,1746412247204,-400.0,0.0003863,14]
[359909065,1746412247217,-400.0,0.0003863,14]
[359909066,1746412247227,-400.0,0.0003863,14]
[359909067,1746412247238,-439.91514304,0.0003868,15]
[359909068,1746412247248,-13620.56,0.000387,30]
[359909069,1746412247258,-9263.56830451,0.000387,5]
[359909070,1746412247403,-205.05010483,0.00038757,39]
[359909071,1746412247413,-200.0,0.00038897,120]
[359909072,1746412247422,-565.95,0.000389,2]
[359909073,1746412247431,-400.0,0.00038904,14]
[359909074,1746412247441,-400.0,0.00038904,14]
[359909075,1746412247450,-400.0,0.00038904,14]
[359909076,1746412247459,-400.0,0.00038904,14]
[359909077,1746412247469,-400.0,0.00038904,14]
[359909078,1746412247482,-963.15,0.00038904,14]
[359909079,1746412247491,-721.79,0.00038904,14]
[359909080,1746412247501,-480.97,0.00038904,14]
[359909081,1746412247511,-586.02,0.00038904,14]
[359909082,1746412247520,-433.78,0.00038904,14]
[359909083,1746412247530,-2557.04,0.00038904,14]
[359909084,1746412247539,-740.33,0.00038904,14]
[359909085,1746412247549,-400.0,0.00038904,14]
[359909086,1746412247559,-400.0,0.00038904,14]
[359909087,1746412247568,-433.01,0.00038904,14]
[359909088,1746412247579,-400.0,0.00038904,14]
[359909089,1746412247589,-484.59,0.00038904,14]
[359909090,1746412247599,-1148.37,0.00038904,14]
[359909091,1746412247609,-525.65,0.00038904,14]
[359909092,1746412247620,-400.0,0.00038904,14]
[359909093,1746412247630,-226.73361148,0.00038904,14]
[359909094,1746412247758,-400.0,0.00035616,14]
[359909095,1746412247768,-185.59638852,0.00038904,14]
[359909096,1746412247778,-400.0,0.00038904,14]
[359909097,1746412247788,-797.75,0.00038904,14]
[359909098,1746412247798,-1447.64,0.00038904,14]
[359909099,1746412247807,-1387.86,0.00038904,14]
[359909100,1746412247817,-9093.68,0.00038904,14]
[359909101,1746412247826,-642.67,0.00038904,14]
[359909102,1746412247836,-400.0,0.00038904,14]
[359909103,1746412247845,-400.0,0.00038904,14]
[359909104,1746412247854,-607.04,0.00038904,14]
[359909105,1746412247863,-675.24,0.00038904,14]
[359909106,1746412247874,-2612.94,0.00038904,14]
[359909107,1746412247885,-2671.88,0.00038904,14]
[359909108,1746412247896,-1200.19,0.00038904,14]
[359909109,1746412247905,-400.0,0.00038904,14]
[359909110,1746412247915,-400.0,0.00038904,14]
[359909111,1746412247925,-1032.49,0.00038904,14]
[359909112,1746412247936,-400.0,0.00038904,14]
[359909113,1746412247945,-405.7617741,0.00038904,14]
[359909114,1746412247955,-400.0,0.00038904,14]
[359909115,1746412247964,-917.46081155,0.00038915,2]
[359909116,1746412247974,-449.832716,0.00038933,2]
[359909117,1746412247983,-9048.49337165,0.00038986,7]
[359909118,1746412249305,-0.01358185,0.00038986,7]
[359909119,1746412249432,-710.465,0.00038577,2]
[359909120,1746412249442,-6270.03449558,0.00038986,7]
[359909121,1746412249452,-205.05010483,0.00038995,39]
[359909122,1746412249462,-3315.92924664,0.00039,7]
[359909123,1746412249472,-242.21614876,0.00039,120]
[359909124,1746412249482,-15917.58089751,0.00039,30]
[359909125,1746412249493,-1400.12446865,0.00039,120]
[359909126,1746412249503,-403.53677923,0.00039,14]
[359909127,1746412249512,-151.0,0.00039,14]
[359909128,1746412249522,-151.0,0.00039,14]
[359909129,1746412249532,-151.0,0.00039,14]
[359909130,1746412249542,-151.0,0.00039,14]
[359909131,1746412249552,-2000.0,0.0003916,2]
[359909132,1746412249562,-900.0,0.0003916,5]
[359909133,1746412249572,-400.0,0.00039178,14]
[359909134,1746412249582,-181.93525826,0.00039178,14]
[359909135,1746412249592,-400.0,0.00039178,14]
[359909136,1746412249601,-400.0,0.00039178,14]
[359909137,1746412249611,-400.0,0.00039178,14]
[359909138,1746412249621,-963.15,0.00039178,14]
[359909139,1746412249632,-480.97,0.00039178,14]
[359909140,1746412249642,-586.02,0.00039178,14]
[359909141,1746412249652,-433.78,0.00039178,14]
[359909142,1746412249662,-2557.04,0.00039178,14]
[359909143,1746412249671,-740.33,0.00039178,14]
[359909144,1746412249681,-400.0,0.00039178,14]
[359909145,1746412249695,-400.0,0.00039178,14]
[359909146,1746412249705,-433.01,0.00039178,14]
[359909147,1746412249716,-400.0,0.00039178,14]
[359909148,1746412249726,-484.59,0.00039178,14]
[359909149,1746412249737,-1148.37,0.00039178,14]
[359909150,1746412249747,-525.65,0.00039178,14]
[359909151,1746412249756,-400.0,0.00039178,14]
[359909152,1746412249767,-412.33,0.00039178,14]
[359909153,1746412249778,-216.76938263,0.00039178,14]
[359909154,1746412249787,-797.75,0.00039178,14]
[359909155,1746412249798,-1447.64,0.00039178,14]
[359909156,1746412249808,-1387.86,0.00039178,14]
[359909157,1746412249819,-9093.68,0.00039178,14]
[359909158,1746412249829,-642.67,0.00039178,14]
[359909159,1746412249839,-352.64697488,0.00039178,14]
[359909160,1746412249851,-400.0,0.00039178,14]
[359909161,1746412249861,-607.04,0.00039178,14]
[359909162,1746412249871,-675.24,0.00039178,14]
[359909163,1746412249881,-2612.94,0.00039178,14]
[359909164,1746412249891,-2671.88,0.00039178,14]
[359909165,1746412249903,-1200.19,0.00039178,14]